Cogmind - Beta 15 *** ADVENTURER MODE // 2025.07.20 @ 14:47:46 Player: Sych Result: Destroyed by G-34 Mercenary with Small Laser Performance ------------- Evolutions (0) 0 Regions Visited (1) 200 Robots Destroyed (6) 30 Value Destroyed (184) 184 Prototype IDs (0) 0 Alien Tech Used (0) 0 Bonus (0) 0 TOTAL SCORE: 414 Bonus ------- None Cogmind --------- Core Integrity 0/250 Matter 236/300 Energy 60/100 System Corruption 0% Temperature Warm (128) Movement Walking (190) Ox1 Location -10/Materials Parts ------- > --- POWER (1) -------- (None) > --- PROPULSION (2) --- Aluminum Leg Aluminum Leg > --- UTILITY (2) ------ Large Storage Unit > --- WEAPON (2) ------- Particle Gun Particle Gun > --- INVENTORY (15) --- Light Ion Engine Aluminum Leg Medium Storage Unit Large Storage Unit Weapon Shielding Peak State ------------ > --- POWER ------------ Light Ion Engine > --- PROPULSION ------- Wheel Wheel > --- UTILITY ---------- Heat Sink Large Storage Unit > --- WEAPON ----------- EM Pulse Gun Assault Rifle > --- INVENTORY -------- Aluminum Leg Aluminum Leg Aluminum Leg Small Storage Unit Small Storage Unit Medium Storage Unit Medium Storage Unit Large Storage Unit Weapon Shielding Small Laser [Rating: 8] Favorites ----------- Power Light Ion Engine Engine Light Ion Engine Propulsion Wheel Leg Aluminum Leg Wheel Wheel Utility Heat Sink Device Heat Sink Storage Large Storage Unit Weapon EM Pulse Gun Energy Gun EM Pulse Gun Ballistic Gun Assault Rifle Build | -11 -10 ------- Run | Yrd Mat Slots Evolved . | . . Power . | . . Propulsion . | . . Utility . | . . Weapon . | . . Parts Attached 14 | 6 8 Power 2 | 1 1 Engine 2 | 1 1 Core . | . . Reactor . | . . Propulsion 4 | 2 2 Treads . | . . Leg 2 | . 2 Wheel 2 | 2 . Hover . | . . Flight . | . . Utility 3 | 1 2 Device 1 | 1 . Storage 2 | . 2 Processor . | . . Hackware . | . . Protection . | . . Artifact . | . . Weapon 5 | 2 3 Energy Gun 4 | 1 3 Energy Cannon . | . . Ballistic Gun 1 | 1 . Ballistic Cannon . | . . Launcher . | . . Special Weapon . | . . Impact Weapon . | . . Slashing Weapon . | . . Piercing Weapon . | . . Special Melee Weapon . | . . Unidentified Prototypes . | . . Parts Lost 7 | . 7 Power 1 | . 1 Propulsion 2 | . 2 Utility 1 | . 1 Weapon 3 | . 3 Highest Loss Streak 7 | . 7 To Critical Strikes . | . . Average Backups 4 | 1 7 Power . | . . Propulsion 2 | . 2 Utility 1 | . 3 Weapon . | . . Tool/Special . | . . Unused Backups 6 | . 6 Power . | . . Propulsion 1 | . 1 Utility 5 | . 5 Weapon . | . . Tool/Special . | . . Average Slot Usage (%) 90 | . 90 Engine 12 | . 12 Leg 3 | . 3 Wheel 22 | . 22 Device 14 | . 14 Storage 12 | . 12 Energy Gun 13 | . 13 Ballistic Gun 11 | . 11 Peak Build Rating 8 | 6 8 Average Rating 5 | 4 6 On Entrance 3 | . 6 Naked Turns . | . . Heaviest Build 28 | 8 28 Greatest Support 20 | 20 20 Greatest Overweight (x) 1 | . 1 Average Overweight (x) . | . . Largest Inventory Capacity 15 | 5 15 Average Capacity 10 | 5 14 Most Carried 10 | 5 10 Average Carried 4 | 1 7 Final Capacity 15 | 5 15 Final Carried 5 | 4 5 Class Distribution -------------------- 100% | Mutant Dominant Class ---------------- Mutant | -10/Materials Resources | -11 -10 ----------- Run | Yrd Mat Matter Collected 256 | 256 . Remotely . | . . Salvage Created 255 | 43 212 Parts 13 | 2 11 Haulers Intercepted . | . . Recyclers Shooed . | . . Parts Field Recycled . | . . Retrieved Matter . | . . Parts Self-Destructed . | . . Prevented . | . . Kills | -11 -10 ------- Run | Yrd Mat Combat Hostiles Destroyed 5 | 1 4 Guns 5 | 1 4 Classes Destroyed 2 | 1 1 Worker 1 | . 1 Grunt 5 | 1 4 Best Kill Streak 5 | 1 5 Combat Bots Only 4 | 1 4 Max Kills in Single Turn 1 | 1 1 Gunslinging . | . . Exploded . | . . Melee . | . . Uniques/NPCs Destroyed . | . . Combat | -11 -10 -------- Run | Yrd Mat Hostile Shots Fired 140 | 2 138 Missed 39 | 1 38 Hits 101 | 1 100 Projectile 101 | 1 100 Damage Taken 853 | 8 845 Core 254 | 8 246 Absorbed by Shields . | . . Ignored by Resistances 271 | 2 269 Core Remaining (%) 96 | 96 . Volleys Fired 26 | 2 24 Largest 2 | 2 2 Hottest 130 | 60 130 Shots Fired 43 | 4 39 Gun 43 | 4 39 Cannon . | . . Launcher . | . . Special . | . . Kinetic 15 | 2 13 Thermal 14 | . 14 Explosive . | . . Electromagnetic 14 | 2 12 Robot Hit Streak 17 | 2 17 Robot Miss Streak 1 | 1 1 Penetration Max . | . . Secondary Targets 1 | . 1 Max Gunslinging Chain 1 | . 1 Shots Hit Robots 38 | 3 35 Core Hits 13 | 2 11 Critical Kills . | . . Critical Parts Destroyed . | . . Critical Strikes . | . . Melee Attacks . | . . Impact . | . . Slashing . | . . Piercing . | . . Sneak Attacks . | . . Combat Hostiles . | . . Follow-up Attacks . | . . Damage Inflicted 487 | 32 455 Guns 487 | 32 455 Cannons . | . . Explosions . | . . Melee . | . . Ramming . | . . Kinetic 167 | 20 147 Thermal 177 | . 177 Explosive . | . . Electromagnetic 143 | 12 131 Impact . | . . Slashing . | . . Piercing . | . . Highest Corruption . | . . Average Corruption . | . . Corruption Purged . | . . Corruption Blocked . | . . Overload Shots . | . . Overflow Damage . | . . Projectiles . | . . Explosions . | . . Melee . | . . Knockbacks . | . . Impact . | . . Kinetic . | . . Secondary . | . . Self-Inflicted Damage . | . . Shots . | . . Rammed . | . . Targets Rammed . | . . Kicked . | . . Crushed . | . . Highest Temperature 122 | 6 122 Average Temperature 17 | 6 18 Received Heat Transfer 615 | 6 609 Siege Activations . | . . Martial Activations . | . . Shielding Activations . | . . Robots Disrupted . | . . Combat Hostiles . | . . Robots Corrupted . | . . Combat Hostiles . | . . Parts Fried . | . . Impact Corruptions . | . . Robots Melted . | . . Combat Hostiles . | . . Parts Melted . | . . Heat Transferred 398 | . 398 Parts Sabotaged . | . . Parts Stolen . | . . Parts Stripped . | . . Power Chain Reactions . | . . Alert | -11 -10 ------- Run | Yrd Mat Maximum Alert Level . | . . Low Security (%) 100 | 100 100 Level 1 . | . . Level 2 . | . . Level 3 . | . . Level 4 . | . . Level 5 . | . . High Security . | . . Max Security . | . . Peak Influence 60 | 20 60 Initial 5 | . 5 Average 6 | 2 9 Influence Increases 134 | 20 114 Destroy 0b10 Robot/C 100 | 20 80 Destroy 0b10 Robot/NC 5 | . 5 Destroy Leader 20 | . 20 Successful Hack 9 | . 9 Influence Decreases 134 | 10 124 Entered New Map 5 | . 5 Time Decay 69 | 10 59 Lost Part 60 | . 60 Squads Dispatched 2 | . 2 Investigation 2 | . 2 Extermination . | . . Reinforcement . | . . Assault . | . . Garrison . | . . Intercept . | . . Searches Triggered . | . . Construction Impeded . | . . Haulers Reinforced . | . . Active Scanning Responses . | . . Cargo Convoy Interrupts . | . . Stealth | -11 -10 --------- Run | Yrd Mat Distress Signals . | . . Communications Jammed . | . . Distress Signals . | . . Times Spotted 10 | 1 9 Peak Tracking Total 8 | 1 8 Tactical Retreats . | . . Traps | -11 -10 ------- Run | Yrd Mat Traps Triggered 2 | . 2 Indirectly . | . . Trap Hack Attempts . | . . Triggered . | . . Disarmed . | . . Reprogrammed . | . . Reused . | . . Traps Extracted . | . . Installed . | . . Triggered . | . . Machines | -11 -10 ---------- Run | Yrd Mat Machines Disabled . | . . Max in Single Turn . | . . Machines Repaired . | . . Machines Dismantled . | . . Machines Sabotaged . | . . Overloaded Fab Kills . | . . Hacking | -11 -10 --------- Run | Yrd Mat Machines Accessed 2 | . 2 Terminals 1 | . 1 Fabricators . | . . Repair Stations . | . . Recycling Units 1 | . 1 Scanalyzers . | . . Garrison Access . | . . Total Hacks 11 | . 11 Successful 10 | . 10 Failed 1 | . 1 Catastrophic . | . . Database Lockouts . | . . Manual . | . . Terminals 4 | . 4 Fabricators . | . . Repair Stations . | . . Recycling Units 7 | . 7 Scanalyzers . | . . Garrison Access . | . . Terminal Hacks 4 | . 4 Record 3 | . 3 Dispatch Records 1 | . 1 Fabricator Hacks . | . . Repair Station Hacks . | . . Recycling Unit Hacks 6 | . 6 Recycle Component 3 | . 3 Process 1 | . 1 Retrieve Matter 1 | . 1 Retrieve Components 1 | . 1 Scanalyzer . | . . Garrison Access Hacks . | . . Unauthorized Hacks . | . . Terminals . | . . Fabricators . | . . Repair Stations . | . . Recycling Units . | . . Scanalyzers . | . . Garrison Access . | . . Data Cores Recovered . | . . Used . | . . Hacking Detections 2 | . 2 Full Trace Events . | . . Feedback Events . | . . Feedback Blocked . | . . Robot Schematics Acquired . | . . Robots Built . | . . Authchips . | . . Time . | . . Total Robot Build Rating . | . . Part Schematics Acquired . | . . Parts Built . | . . Authchips . | . . Time . | . . Total Part Build Rating . | . . Parts Repaired . | . . Time . | . . Parts Recycled 3 | . 3 Recycled Matter 318 | . 318 Retrieved Matter 318 | . 318 Retrieved Components . | . . Parts Scanalyzed . | . . Part Schematics Acquired . | . . Parts Damaged . | . . Bothacking | -11 -10 ------------ Run | Yrd Mat Used RIF Installer . | . . Robots Hacked . | . . Non-combat . | . . Combat . | . . Robot Hacks Applied . | . . Relay Couplers Released . | . . Fabnet Peak Effective % . | . . Robots Rewired . | . . Allies Hacked . | . . Hacks Repelled . | . . Allies | -11 -10 -------- Run | Yrd Mat Total Allies . | . . Largest Group . | . . Highest-Rated Group . | . . Highest-Rated Ally . | . . Total Orders . | . . Ally Attacks . | . . Total Damage . | . . Kills . | . . Allies Corrupted . | . . Allies Melted . | . . Intel | -11 -10 ------- Run | Yrd Mat Active Infowar (turns) . | . . Robot Analysis Total . | . . Derelict Logs Recovered . | . . Drone Launches . | . . Drone Recoveries . | . . Exploration | -11 -10 ------------- Run | Yrd Mat Turns Passed 444 | 173 271 Spaces Moved 382 | 188 194 Core 22 | 22 . Treads . | . . Legs 12 | . 12 Wheels 348 | 166 182 Hover . | . . Flight . | . . Fastest Speed 50 | 50 80 Average Speed 87 | 76 99 Slowest Speed 190 | 80 190 Overloaded Moves . | . . Propulsion Burnouts . | . . Robots Hopped . | . . Potential Cave-ins . | . . Cave-ins Triggered . | . . Exploration Rate (%) 13 | 9 18 Regions Visited 1 Branch Regions . Pre-discovered Areas . | . . Known Exits Taken . | . . Unknown Exits Taken 1 | 1 . Scrap Searched . | . . Spaces Dug . | . . Terrain Destroyed . | . . Melee . | . . Projectile . | . . AOE . | . . Terrain Rammed . | . . Walls Destroyed . | . . Machines Disabled . | . . Actions | -11 -10 --------- Run | Yrd Mat Total 443 | 211 232 Wait 9 | 9 . Move 381 | 187 194 Hop . | . . Pick Up 13 | 7 6 Fast Attach 6 | 3 3 Attach 6 | 3 3 Detach . | . . Swap 2 | . 2 Drop . | . . Fire 26 | 2 24 Melee . | . . Ram . | . . Kick . | . . Crush . | . . Escape Stasis . | . . Rewire . | . . Trap . | . . Miscellaneous . | . . Route ------- -11/Scrapyard -10/Materials (discovered 1 exit: [*Sub]) History --------- Turn | Location | Event 2 | -11/Scrapyard | Met Revision 17 138 | -11/Scrapyard | Discovered new exit (range 8) 174 | -11/Scrapyard | Entered Materials 311 | -10/Materials | Build established: Mutant 411 | -10/Materials | Core integrity fell below 50% 424 | -10/Materials | Discovered new exit (range 10) 435 | -10/Materials | Core integrity fell below 20% 445 | -10/Materials | Destroyed by G-34 Mercenary with Small Laser Last Messages --------------- K-01 Serf collects debris. Wheel destroyed. K-01 Serf collects debris. EM Pulse Gun destroyed. K-01 Serf collects debris. [Achievement: Crack Shot] G-34 Mercenary destroyed. Switching to secondary target: G-34 Mercenary. Assault Rifle destroyed. K-01 Serf collects debris. Wheel destroyed. K-01 Serf collects debris. K-01 Serf destroyed. Sml. Laser destroyed. Lgt. Ion Engine destroyed. EXIT=FOUND Acquired Particle Gun. Heat Sink destroyed. Destroyed Ion Engine. [Achievement: First Step to Greatness] Map ----- +----------------------------------------------------+ | | | | | | | | | | | | | | | | | | | | | | | | | | | | | | | | | | | | | | | | | | | | | | | ?????????????????????????????????????????????????? | | ???????????????????########??????????????????????? | | ???????????????????#[[[[[@#???##??#??????????????? | | ???????????????????#[[[[[ #?? ##<#??????????????? | | ???????????????????# #? #???????????????? | | ?????????????+###### # #???????????????? | | ??????????# # #???????????????? | | ??????????# g #???###########????? | | ???????????##+##### g""" # ##???# ## ##???? | | ??????????????????# "R ####????# # #???? | | ??????????????????# """g #???????# # #???? | | ??????????????????# ######### # ##### | | ??????????????????# * | | ??????????????????#=!*= g | | ??????????????????#*%%=! | | ??????????????????# *################ ############ | | ??????????????????#%%#??????????????# #??????????? | | ??????????????????#*=#??????????????# #??????????? | | ?????????????????? ??????????????# #??????????? | | ?????????????????+ ??????????????# #??????????? | | ???????????????? # T #?????????????# #??????????? | | ???????????????" # #?????????????# #??????????? | | ?????????????? ?## ##?????????????? ??????????? | | ??????????????#???# #??????????????? ??????????? | | ??????????????????# #??????????????? T??????????? | | ??????????????????# ??????????????? ??????????? | | ??????????????????? ??????????????? ???????????? | +----------------------------------------------------+ Best States ------------- Heat Dissipation 35 Energy Generation 10 Energy Capacity 125 Matter Stores 300 Matter Capacity 300 Sight Range 16 Terrain Scan Density 10 Resistance: KI 20 Resistance: TH 20 Resistance: EX 20 Resistance: EM 20 Resistance: I 20 Resistance: S 20 Resistance: P 20 Evasion (%) 50 Offensive Hacking 10 Item Schematics ----------------- None Robot Schematics ------------------ None Fabricated ------------ Nothing Repaired ---------- Nothing Alien Tech Used ----------------- None Achievements -------------- Crack Shot First Step to Greatness Challenges ------------ None Game ------ Seed ThiefZioniteWheel Manual? 0 Play Time 00:14:49 Cumulative 0.2 hours Start 2025.07.20 @ 14:31:40 End 2025.07.20 @ 14:47:46 Sessions 1 Manual Loads 0 Difficulty Adventurer Special Mode None Game No. 1 Rogue 0 Adventurer 1 Explorer 0 Win Type - Total 0 Types 0/0/0/0/0/0/0/0/0/0 Lore% 0 Gallery% 1 Achievement% 0 Wizard Run 0 Options --------- Layout 1 ASCII 0 Keyboard 0 Movement Arrows Keybinds 0 Fullscreen 1 Font 24/Proggy Map View 50x35 Zoom Use 0% Tactical HUD 0 Map Filters NONE Filters NONE Steam 0 RUN: d8d38754-d8e8-4afa-b896-6d52760e0be0